fUST/lending_fUST_20240328
["ID","MTS","AMOUNT","RATE_DAILY","PERIOD"]
[320811805,1711565407267,-500.0,0.00032875,2]
[320811806,1711565407292,-500.0,0.00032876,2]
[320811807,1711565407317,-669.03,0.00032876,2]
[320811808,1711565407342,-1275.93,0.00032876,2]
[320811809,1711565407367,-956.79,0.00032876,2]
[320811810,1711565407391,-5700.75806899,0.00032876,2]
[320811811,1711565420348,500.0,0.00028192,2]
[320811812,1711565423164,500.0,0.00028192,2]
[320811813,1711565428554,1169.6,0.00029999,2]
[320811921,1711565437856,-1307.22129593,0.00030134,4]
[320811923,1711565437868,-265.59630923,0.00030134,4]
[320811925,1711565437878,-925.63844725,0.00030134,4]
[320811927,1711565437888,-500.0,0.00030135,2]
[320811929,1711565437899,-500.0,0.00030932,2]
[320811931,1711565437908,-1169.6,0.00032739,2]
[320811932,1711565437921,-500.0,0.00032875,2]
[320811934,1711565437932,-533.40193101,0.00032876,2]
[320811937,1711565437949,-1431.88909804,0.00032899,2]
[320811940,1711565437963,-155.00620025,0.00033,4]
[320811942,1711565437974,-500.0,0.00033218,2]
[320811943,1711565437983,-500.0,0.00033218,2]
[320811944,1711565437992,-1407.63,0.00033218,7]
[320811945,1711565438002,-500.0,0.00033218,2]
[320811946,1711565438011,-45.27585687,0.00033218,2]
[320811955,1711565438087,-454.72414313,0.00033218,2]
[320811957,1711565438096,-500.0,0.00033218,2]
[320811959,1711565438105,-500.0,0.00033218,2]
[320811961,1711565438114,-151.0,0.00033218,2]
[320811962,1711565438124,-500.0,0.00033672,2]
[320811964,1711565438133,-500.0,0.00033672,2]
[320811967,1711565438142,-384.99832589,0.00033672,2]
[320811969,1711565438155,-115.00167411,0.00033672,2]
[320811971,1711565438164,-3704.91014556,0.00034998,4]
[320811973,1711565438173,-324.91945834,0.00034998,4]
[320811975,1711565438182,-462.73220732,0.00034999,4]
[320811977,1711565438191,-666.05455207,0.00035,2]
[320811979,1711565438199,-593.68284182,0.00035,2]
[320811981,1711565438209,-6904.89180487,0.00035,4]
[320811983,1711565438218,-155.00620025,0.00035,4]
[320811985,1711565438227,-19245.92065601,0.00035,30]
[320811987,1711565438236,-6250.0,0.0003516,120]
[320811989,1711565438245,-389.75509975,0.00035478,7]
[320811991,1711565438254,-500.0,0.00035479,2]
[320811993,1711565438264,-500.0,0.00035479,2]
[320811995,1711565438273,-500.0,0.00035479,2]
[320811997,1711565438283,-500.0,0.00035479,2]
[320811999,1711565438292,-835.61,0.00035479,2]
[320812001,1711565438301,-500.0,0.00035479,2]
[320812002,1711565438310,-500.0,0.00035479,2]
[320812004,1711565438319,-1711.88,0.00035479,2]
[320812006,1711565438329,-1287.71,0.00035479,2]
[320812009,1711565438340,-6064.36,0.00035479,2]
[320812011,1711565438349,-970.54,0.00035479,2]
[320812013,1711565438358,-1169.6,0.00035479,2]
[320812015,1711565438367,-500.0,0.00035614,2]
[320812016,1711565438377,-164.11859618,0.00035615,7]
[320812019,1711565438386,-210.58430021,0.00035615,7]
[320812020,1711565438396,-70295.229337,0.00035616,3]
[320812023,1711565438405,-477.63994533,0.00035616,2]
[320812024,1711565438414,-669.03,0.00035616,2]
[320812027,1711565438424,-956.79,0.00035616,2]
[320812028,1711565438433,-6234.16,0.00035616,2]
[320812029,1711565438442,-230.42817844,0.00035957,4]
[320812030,1711565438451,-500.0,0.00035958,4]
[320812031,1711565438460,-500.0,0.00035958,4]
[320812032,1711565438470,-1407.63,0.00035958,7]
[320812033,1711565438479,-500.0,0.00035958,4]
[320812034,1711565438488,-500.0,0.00036412,4]
[320812035,1711565438497,-500.0,0.00036412,4]
[320812036,1711565438506,-1431.88909804,0.00037899,2]
[320812037,1711565438515,-500.0,0.00038218,4]
[320812038,1711565438524,-500.0,0.00038218,4]
[320812039,1711565438533,-500.0,0.00038218,4]
[320812040,1711565438543,-835.61,0.00038218,4]
[320812041,1711565438552,-500.0,0.00038218,4]
[320812042,1711565438561,-500.0,0.00038218,4]
[320812043,1711565438570,-1711.88,0.00038218,4]
[320812044,1711565438580,-1287.71,0.00038218,2]
[320812045,1711565438589,-6064.36,0.00038218,4]
[320812046,1711565438599,-970.54,0.00038218,4]
[320812047,1711565438608,-1169.6,0.00038218,4]
[320812048,1711565438617,-500.0,0.00038354,4]
[320812049,1711565438626,-669.03,0.00038355,4]
[320812050,1711565438636,-956.79,0.00038355,4]
[320812051,1711565438645,-6234.16,0.00038355,4]
[320812052,1711565438655,-34010.60837047,0.00038598,2]
[320812053,1711565438664,-500.0,0.00038698,4]
[320812054,1711565438674,-1407.63,0.00038698,7]
[320812055,1711565438683,-500.0,0.00038698,4]
[320812056,1711565438692,-500.0,0.00039151,4]
[320812057,1711565438701,-500.0,0.00039151,4]
[320812058,1711565438710,-6250.0,0.00040183,120]
[320812059,1711565438719,-500.0,0.00040958,4]
[320812060,1711565438728,-500.0,0.00040958,4]
[320812061,1711565438738,-500.0,0.00040958,4]
[320812062,1711565438748,-835.61,0.00040958,4]
[320812063,1711565438757,-500.0,0.00040958,4]
[320812064,1711565438768,-500.0,0.00040958,4]
[320812065,1711565438777,-1711.88,0.00040958,4]
[320812066,1711565438786,-1287.71,0.00040958,2]
[320812067,1711565438795,-6064.36,0.00040958,4]
[320812068,1711565438804,-970.54,0.00040958,4]
[320812069,1711565438813,-1169.6,0.00040958,4]
[320812070,1711565438822,-500.0,0.00041094,4]
[320812071,1711565438832,-669.03,0.00041095,4]
[320812072,1711565438841,-956.79,0.00041095,4]
[320812073,1711565438850,-6234.16,0.00041095,4]
[320812074,1711565438860,-383.60291451,0.00041096,31]
[320812075,1711565438869,-500.0,0.00041096,31]
[320812076,1711565438880,-500.0,0.00041096,31]
[320812077,1711565438891,-500.0,0.00041096,31]
[320812078,1711565438900,-500.0,0.00041096,31]
[320812079,1711565438909,-370.72715213,0.00041096,31]
[320812080,1711565438918,-500.0,0.00041438,4]
[320812081,1711565438929,-1407.63,0.00041438,7]
[320812082,1711565438938,-500.0,0.00041438,4]
[320812083,1711565438947,-500.0,0.00041891,4]
[320812084,1711565438956,-500.0,0.00041891,4]
[320812085,1711565438966,-500.0,0.00043698,4]
[320812086,1711565438975,-500.0,0.00043698,4]
[320812087,1711565438984,-500.0,0.00043698,4]
[320812088,1711565438994,-835.61,0.00043698,4]
[320812089,1711565439003,-500.0,0.00043698,4]
[320812090,1711565439012,-500.0,0.00043698,4]
[320812091,1711565439021,-1711.88,0.00043698,4]
[320812092,1711565439030,-1287.71,0.00043698,2]
[320812093,1711565439039,-6064.36,0.00043698,4]
[320812094,1711565439049,-970.54,0.00043698,4]
[320812095,1711565439057,-1169.6,0.00043698,4]
[320812096,1711565439067,-500.0,0.00043833,4]
[320812097,1711565439078,-669.03,0.00043835,4]
[320812098,1711565439087,-956.79,0.00043835,4]
[320812099,1711565439221,-6234.16,0.00043835,4]
[320812100,1711565439231,-12545.40579943,0.00044177,4]
[320812101,1711565439240,-500.0,0.00044177,4]
[320812102,1711565439250,-1407.63,0.00044177,7]
[320812103,1711565439259,-355.4090916,0.00044177,4]
[320812104,1711565439269,-500.0,0.00044631,4]
[320812105,1711565439279,-500.0,0.00044631,4]
[320812106,1711565439288,-6250.0,0.00045205,120]
[320812107,1711565439297,-500.0,0.00046438,4]
[320812108,1711565439306,-500.0,0.00046438,4]
[320812109,1711565439316,-500.0,0.00046438,4]
[320812110,1711565439327,-835.61,0.00046438,4]
[320812111,1711565439337,-500.0,0.00046438,4]
[320812112,1711565439347,-500.0,0.00046438,4]
[320812113,1711565439356,-1711.88,0.00046438,4]
[320812114,1711565439365,-1287.71,0.00046438,2]
[320812115,1711565439374,-6064.36,0.00046438,4]
[320812116,1711565439383,-970.54,0.00046438,4]
[320812117,1711565439392,-1169.6,0.00046438,4]
[320812118,1711565439402,-500.0,0.00046573,4]
[320812119,1711565439411,-669.03,0.00046575,4]
[320812120,1711565439420,-956.79,0.00046575,4]
[320812121,1711565439429,-6234.16,0.00046575,4]
[320812122,1711565439439,-500.0,0.00046917,4]
[320812123,1711565439448,-1407.63,0.00046917,7]
[320812124,1711565439458,-500.0,0.0004737,4]
[320812125,1711565439467,-155.00620025,0.0004761,4]
[320812126,1711565439476,-500.0,0.00049177,4]
[320812127,1711565439485,-500.0,0.00049177,4]
[320812128,1711565439494,-491.76879244,0.00049177,4]
[320812130,1711565439503,-835.61,0.00049177,4]
[320812131,1711565439512,-500.0,0.00049177,4]
[320812132,1711565439522,-500.0,0.00049177,4]
[320812133,1711565439531,-1711.88,0.00049177,4]
[320812134,1711565439540,-1287.71,0.00049177,2]
[320812135,1711565439549,-6064.36,0.00049177,4]
[320812136,1711565439558,-970.54,0.00049177,4]
[320812137,1711565439567,-1169.6,0.00049177,4]
[320812138,1711565439577,-500.0,0.00049313,4]
[320812139,1711565439586,-669.03,0.00049314,4]
[320812140,1711565439595,-956.79,0.00049314,4]
[320812141,1711565439605,-6234.16,0.00049314,4]
[320812142,1711565439614,-500.0,0.00049657,120]
[320812143,1711565439623,-1407.63,0.00049657,7]
[320812144,1711565439632,-500.0,0.0005011,120]
[320812145,1711565439642,-500.0,0.00051917,120]
[320812146,1711565439651,-500.0,0.00051917,120]
[320812147,1711565439660,-835.61,0.00051917,120]
[320812148,1711565439669,-500.0,0.00051917,120]
[320812149,1711565439678,-500.0,0.00051917,120]
[320812150,1711565439687,-1711.88,0.00051917,120]
[320812151,1711565439696,-1287.71,0.00051917,2]
[320812152,1711565439705,-6064.36,0.00051917,90]
[320812153,1711565439714,-970.54,0.00051917,120]
[320812154,1711565439723,-1169.6,0.00051917,120]
[320812155,1711565439733,-1316.0,0.00051979,48]
[320812156,1711565439743,-500.0,0.00052053,120]
[320812157,1711565439752,-669.03,0.00052054,120]
[320812158,1711565439761,-599.0,0.00052054,120]
[320812159,1711565439770,-956.79,0.00052054,120]
[320812160,1711565439779,-6234.16,0.00052054,120]
[320812161,1711565439788,-172.78579841,0.00052238,3]
[320812162,1711565439797,-500.0,0.00052396,120]
[320812163,1711565439806,-1407.63,0.00052396,7]
[320812164,1711565439815,-86.68010417,0.000528,2]
[320812165,1711565440365,500.0,0.00028192,2]
[320812167,1711565442341,-277.30566118,0.000528,2]
[320812169,1711565442399,-974.9994,0.000528,2]
[320812201,1711565446651,-218.8760154,0.000528,2]
[320812202,1711565446660,-500.0,0.0005285,120]
[320812203,1711565446670,-1316.53170713,0.00052898,52]
[320812204,1711565446679,-266.36282467,0.00052898,7]
[320812205,1711565446688,-155.15826143,0.00052898,4]
[320812206,1711565446697,-683.98401175,0.00052899,2]
[320812207,1711565446707,-2431.99961836,0.000529,30]
[320812208,1711565446716,-49999.25049748,0.000529,31]
[320812209,1711565446725,-8620.31359835,0.000529,30]
[320812210,1711565446735,-1943.85357974,0.000529,30]
[320812211,1711565446744,-1153.50524087,0.000529,4]
[320812212,1711565446754,-100000.16565665,0.000529,30]
[320812213,1711565446763,-950.90570199,0.00053,30]
[320812214,1711565446773,-15413.19631166,0.00053,30]
[320812215,1711565446782,-1323.5406184,0.0005346,77]
[320812216,1711565446792,-160.0,0.00053637,3]
[320812217,1711565446802,-34965.19689864,0.000537,120]
[320812218,1711565446812,-217.44535499,0.000538,2]
[320812219,1711565446823,-32811.59908819,0.000539,30]
[320812220,1711565446834,-3453.48957541,0.000539,30]
[320812221,1711565446843,-958.57045737,0.00054,120]
[320812222,1711565446852,-1443.06365902,0.00054,120]
[320812223,1711565446862,-155.01705188,0.00054,30]
[320812224,1711565446871,-2560.93,0.00054229,5]
[320812225,1711565446882,-500.0,0.00054529,120]
[320812226,1711565446891,-1182.34,0.00054531,120]
[320812227,1711565446900,-500.0,0.00054657,120]
[320812228,1711565446910,-500.0,0.00054657,120]
[320812229,1711565446921,-835.61,0.00054657,120]
[320812230,1711565446931,-500.0,0.00054657,120]
[320812231,1711565446939,-500.0,0.00054657,120]
[320812232,1711565446950,-1711.88,0.00054657,120]
[320812233,1711565446964,-1287.71,0.00054657,2]
[320812234,1711565446975,-6064.36,0.00054657,90]
[320812235,1711565446985,-970.54,0.00054657,120]
[320812236,1711565446995,-1169.6,0.00054657,120]
[320812237,1711565447005,-155.067848,0.00054684,4]
[320812238,1711565447014,-155.08526624,0.00054684,4]
[320812239,1711565447024,-155.02184145,0.00054684,4]
[320812240,1711565447035,-162.45467831,0.00054687,4]
[320812241,1711565447045,-250.0,0.00054699,14]
[320812242,1711565447055,-250.0,0.00054699,21]
[320812243,1711565447065,-500.0,0.00054792,120]
[320812244,1711565447075,-1000.0,0.00054793,120]
[320812245,1711565447085,-917.28,0.00054794,120]
[320812246,1711565447094,-917.28,0.00054794,120]
[320812247,1711565447104,-917.28,0.00054794,120]
[320812248,1711565447114,-917.28,0.00054794,120]
[320812249,1711565447123,-917.28,0.00054794,120]
[320812250,1711565447132,-917.28,0.00054794,120]
[320812251,1711565447142,-917.28,0.00054794,120]
[320812252,1711565447151,-917.28,0.00054794,120]
[320812253,1711565447161,-917.28,0.00054794,120]
[320812254,1711565447170,-917.28,0.00054794,120]
[320812255,1711565447181,-917.28,0.00054794,120]
[320812256,1711565447191,-500.0,0.00054794,120]
[320812257,1711565447201,-500.0,0.00054794,120]
[320812258,1711565447211,-500.0,0.00054794,120]
[320812259,1711565447220,-500.0,0.00054794,120]
[320812260,1711565447230,-500.0,0.00054794,120]
[320812261,1711565447239,-500.0,0.00054794,120]
[320812262,1711565447248,-500.0,0.00054794,120]
[320812263,1711565447257,-500.0,0.00054794,120]
[320812264,1711565447266,-500.0,0.00054794,120]
[320812265,1711565447276,-500.0,0.00054794,120]
[320812266,1711565447285,-500.0,0.00054794,120]
[320812267,1711565447296,-250.0,0.00054794,2]
[320812268,1711565447305,-250.0,0.00054794,2]
[320812269,1711565447315,-250.0,0.00054794,4]
[320812270,1711565447325,-250.0,0.00054794,4]
[320812271,1711565447335,-378.72618526,0.00054794,4]
[320812272,1711565447344,-669.03,0.00054794,120]
[320812273,1711565447354,-956.79,0.00054794,120]
[320812274,1711565447364,-189.18920572,0.00054794,120]
[320812275,1711565447373,-6234.16,0.00054794,120]
[320812276,1711565447383,-500.0,0.00054794,120]
[320812277,1711565447392,-500.0,0.00054794,120]
[320812278,1711565447401,-500.0,0.00054794,120]
[320812279,1711565447411,-500.0,0.00054794,120]
[320812280,1711565447420,-500.0,0.00054794,120]
[320812281,1711565447429,-500.0,0.00054794,120]
[320812282,1711565447439,-500.0,0.00054794,120]
[320812283,1711565447448,-500.0,0.00054794,120]
[320812284,1711565447458,-500.0,0.00054794,120]
[320812285,1711565447466,-500.0,0.00054794,120]
[320812286,1711565447476,-6000.0,0.00054794,120]
[320812287,1711565447485,-6000.0,0.00054794,120]
[320812288,1711565447494,-6000.0,0.00054794,120]
[320812289,1711565447504,-6000.0,0.00054794,120]
[320812290,1711565447513,-6000.0,0.00054794,120]
[320812291,1711565447522,-6000.0,0.00054794,120]
[320812292,1711565447531,-6000.0,0.00054794,120]
[320812293,1711565447541,-6000.0,0.00054794,120]
[320812294,1711565447550,-6000.0,0.00054794,120]
[320812295,1711565447559,-156.12400291,0.00054794,120]
[320812296,1711565447595,-5843.87599709,0.00054794,120]
[320812297,1711565447604,-500.0,0.00054794,2]
[320812298,1711565447614,-500.0,0.00054794,2]
[320812299,1711565447623,-500.0,0.00054794,2]
[320812300,1711565447632,-500.0,0.00054794,4]
[320812301,1711565447642,-500.0,0.00054794,4]
[320812302,1711565447651,-500.0,0.00054794,4]
[320812303,1711565447660,-500.0,0.00054794,4]
[320812304,1711565447670,-500.0,0.00054794,4]
[320812305,1711565447679,-500.0,0.00054794,120]
[320812306,1711565447688,-500.0,0.00054794,120]
[320812307,1711565447697,-1522.50724197,0.00054794,120]
[320812308,1711565447707,-1880.84560841,0.00054794,120]
[320812309,1711565447716,-2002.05000001,0.00055,120]
[320812310,1711565447726,-917.28,0.00055136,120]
[320812311,1711565447735,-500.0,0.00055136,120]
[320812312,1711565447744,-500.0,0.00055136,120]
[320812313,1711565447753,-1407.63,0.00055136,7]
[320812314,1711565447763,-500.0,0.0005559,120]
[320812315,1711565447773,-6000.0,0.0005559,120]
[320812316,1711565447783,-500.0,0.0005559,120]
[320812317,1711565447792,-1573.10814051,0.00056,120]
[320812318,1711565447802,-1754.84477376,0.00057,120]
[320812319,1711565447812,-500.0,0.00057269,120]
[320812320,1711565447821,-1182.34,0.00057271,120]
[320812321,1711565447832,-1000.0,0.00057293,10]
[320812322,1711565447840,-500.0,0.00057396,120]
[320812323,1711565447849,-500.0,0.00057396,120]
[320812324,1711565447858,-835.61,0.00057396,120]
[320812325,1711565447868,-500.0,0.00057396,120]
[320812326,1711565447878,-500.0,0.00057396,120]
[320812327,1711565447888,-1711.88,0.00057396,120]
[320812328,1711565447902,-1287.71,0.00057396,2]
[320812329,1711565447913,-6064.36,0.00057396,90]
[320812330,1711565447922,-500.0,0.00057396,120]
[320812331,1711565447932,-970.54,0.00057396,120]
[320812332,1711565447940,-1169.6,0.00057396,120]
[320812333,1711565448032,-500.0,0.00057532,120]
[320812334,1711565448053,-669.03,0.00057533,120]
[320812335,1711565448062,-956.79,0.00057533,120]
[320812336,1711565448072,-6234.16,0.00057533,120]
[320812337,1711565448083,-2000.0,0.00057775,2]
[320812338,1711565448092,-917.28,0.00057876,120]
[320812339,1711565448101,-500.0,0.00057876,120]
[320812340,1711565448111,-500.0,0.00057876,120]
[320812341,1711565448120,-1407.63,0.00057876,7]
[320812342,1711565448129,-500.0,0.00058329,120]
[320812343,1711565448138,-6000.0,0.00058329,120]
[320812344,1711565448152,-637.63491302,0.00058329,120]
[320812345,1711565448163,-160.0,0.00058518,4]
[320812346,1711565448172,-1005.37105559,0.000587,60]
[320812347,1711565448181,-635.27243804,0.000598,120]
[320812348,1711565448190,-1000.0,0.00059846,15]
[320812349,1711565448200,-500.0,0.0006,120]
[320812350,1711565448209,-390.01,0.0006,7]
[320812351,1711565448218,-2002.79024796,0.0006,30]
[320812352,1711565448227,-21486.0630574,0.0006,120]
[320812353,1711565448236,-582.83817381,0.0006,120]
[320812354,1711565448246,-669.36499576,0.0006,12]
[320812355,1711565448255,-200.0,0.0006,120]
[320812356,1711565448264,-35532.57414989,0.0006,120]
[320812357,1711565448310,-834.62511709,0.0006,120]
[320812358,1711565448321,-8284.33293764,0.0006,120]
[320812359,1711565448334,-1246.07515543,0.0006,120]
[320812360,1711565448345,-747.00021473,0.0006,120]
[320812361,1711565448356,-55057.14914331,0.0006,120]
[320812362,1711565448465,-1000.0,0.00052899,120]
[320812363,1711565448475,-26055.26273446,0.0006,120]
[320812364,1711565456364,500.0,0.00028192,2]
[320812365,1711565462347,155.00620025,0.00025373,2]
[320812372,1711565488300,927.27,0.00028192,2]
[320812374,1711565502054,1000.0,0.00028192,2]
[320812375,1711565504995,518.26,0.00029999,2]
[320812382,1711565526539,751.22028811,0.00029999,2]
[320812383,1711565528839,3636.6,0.00029999,2]
[320812385,1711565530877,500.0,0.00029999,2]
[320812387,1711565544906,500.0,0.00029999,2]
[320812390,1711565548545,751.22028811,0.00029999,2]
[320812392,1711565560872,500.0,0.00029999,2]
[320812393,1711565566546,751.22028811,0.00029999,2]
[320812395,1711565572977,3284.87,0.00028192,2]
[320812397,1711565576875,500.0,0.00029999,2]
[320812399,1711565588623,751.22028811,0.00029999,2]
[320812400,1711565593415,1202.96,0.00028192,2]
[320812401,1711565598885,500.0,0.00029999,2]
[320812402,1711565604555,751.22028811,0.00029999,2]
[320812403,1711565616883,500.0,0.00029999,2]
[320812404,1711565620597,664.68536528,0.00029999,2]
[320812406,1711565629771,20491.9126757,0.0002,2]
[320812407,1711565633177,500.0,0.00029999,2]
[320812410,1711565648510,682.27,0.00028192,2]
[320812411,1711565654891,500.0,0.00029999,2]
[320812412,1711565657453,3487.52352216,0.000125,2]
[320812413,1711565671640,49850.01324887,0.000249,2]
[320812414,1711565673184,4559.23251508,0.00024,2]
[320812416,1711565674412,275.728299,0.00026611,30]
[320812417,1711565674887,500.0,0.00029999,2]
[320812419,1711565693545,500.0,0.00027738,2]
[320812420,1711565700906,500.0,0.00029999,2]
[320812421,1711565716856,536.53,0.00028192,2]
[320812422,1711565718904,500.0,0.00029999,2]
[320812423,1711565736888,500.0,0.00029999,2]
[320812424,1711565758910,500.0,0.00029999,2]
[320812425,1711565766826,155.00620025,0.00026999,2]
[320812426,1711565776898,500.0,0.00029999,2]
[320812427,1711565780868,248.33577135,0.00026999,2]
[320812428,1711565785841,163.890053,0.00028993,2]
[320812429,1711565792902,500.0,0.00029999,2]
[320812430,1711565810948,500.0,0.00026999,2]
[320812431,1711565816497,2059.37,0.0003,2]
[320812432,1711565827587,12545.40579943,0.00026999,2]
[320812433,1711565830926,500.0,0.00026999,2]
[320812434,1711565853008,500.0,0.00026999,2]
[320812435,1711565868942,500.0,0.00026999,2]
[320812828,1711566631923,-204.89538144,0.0002582,2]
[320812829,1711566631933,-626.28533434,0.00025821,2]
[320812830,1711566631943,-241.83291114,0.00025821,2]
[320812831,1711566631952,-155.00930056,0.00025822,2]
[320812832,1711566631962,-686.21227838,0.00025822,2]
[320812833,1711566631972,-216.0,0.00025826,2]
[320812834,1711566631981,-1807.97119211,0.00025827,2]
[320812835,1711566631990,-194.119164,0.00025841,2]
[320812836,1711566632001,-3669.29034459,0.00026897,2]
[320812899,1711566637930,-35.61980097,0.00026897,2]
[320812901,1711566637939,-12050.14917146,0.00026898,2]
[320812902,1711566637948,-151.0,0.000269,2]
[320812904,1711566637957,-500.0,0.00026999,2]
[320812905,1711566637966,-1620.29999842,0.00027,2]
[320812907,1711566637975,-24900.0,0.00027778,2]
[320812909,1711566637984,-547.7785225,0.000279,2]
[320812911,1711566637993,-166.666666,0.00028162,2]
[320812912,1711566638002,-166.666666,0.0002893,2]
[320812913,1711566638013,-166.666666,0.00029698,2]
[320812914,1711566638022,-598.48601028,0.0003,2]
[320812915,1711566638030,-248.11437394,0.00030029,2]
[320812916,1711566638039,-1922.02642136,0.00030033,4]
[320812917,1711566638048,-14439.81913906,0.00030035,2]
[320812919,1711566638058,-389.75509975,0.00030134,2]
[320812921,1711566638067,-1114.38,0.00030135,7]
[320812923,1711566638076,-500.0,0.00030135,2]
[320812925,1711566638085,-6250.0,0.00030137,120]
[320812927,1711566638094,-166.666666,0.00030466,2]
[320812929,1711566638103,-2778.73426896,0.0003093,120]
[320812931,1711566638113,-270.55201027,0.0003093,4]
[320812933,1711566638122,-192.09614906,0.0003093,4]
[320812936,1711566638132,-255.47464944,0.0003093,4]
[320812937,1711566638141,-214.73786596,0.00030931,4]
[320812939,1711566638151,-3509.19508101,0.00030931,4]
[320812942,1711566638160,-500.0,0.00031232,2]
[320812944,1711566638169,-500.0,0.00031233,2]
[320812946,1711566638180,-500.0,0.00031233,2]
[320812948,1711566638190,-1459.26,0.00031233,2]
[320812950,1711566638199,-1085.08,0.00031233,2]
[320812951,1711566638209,-5169.45,0.00031233,2]
[320812953,1711566638218,-1152.83,0.00031233,2]
[320812955,1711566638229,-166.666666,0.00031233,2]
[320812956,1711566638240,-166.666666,0.00032001,2]
[320812957,1711566638250,-500.0,0.00032874,2]
[320812958,1711566638259,-731.16,0.00032874,2]
[320812959,1711566638270,-500.0,0.00032874,2]
[320812960,1711566638280,-500.0,0.00032874,2]
[320812961,1711566638289,-1114.38,0.00032875,7]
[320812962,1711566638299,-500.0,0.00032875,2]
[320812963,1711566638312,-547.7785225,0.000329,2]
[320812964,1711566638324,-155.00620025,0.00033,4]
[320812965,1711566638334,-291.35313108,0.0003367,4]
[320812966,1711566638343,-500.0,0.00033972,2]
[320812967,1711566638352,-500.0,0.00033972,2]
[320812968,1711566638361,-1459.26,0.00033972,2]
[320812969,1711566638371,-1085.08,0.00033972,2]
[320812970,1711566638382,-500.0,0.00033972,2]
[320812971,1711566638391,-5169.45,0.00033972,2]
[320812972,1711566638403,-1152.83,0.00033972,2]
[320812973,1711566638412,-462.73220732,0.00034,4]
[320812974,1711566638421,-164.11859618,0.00034998,7]
[320812975,1711566638430,-210.58430021,0.00034998,7]
[320812976,1711566638439,-500.0,0.00034999,2]
[320812977,1711566638448,-230.42817844,0.00034999,2]
[320812978,1711566638457,-500.0,0.00034999,2]
[320812979,1711566638466,-500.0,0.00034999,2]
[320812980,1711566638475,-477.63994533,0.00034999,2]
[320812981,1711566638485,-585.4,0.00034999,2]
[320812982,1711566638493,-994.98,0.00034999,2]
[320812983,1711566638502,-500.0,0.00034999,2]
[320812984,1711566638512,-793.24,0.00034999,2]
[320812985,1711566638521,-849.22,0.00034999,2]
[320812986,1711566638530,-500.0,0.00034999,2]
[320812987,1711566638540,-666.05455207,0.00035,2]
[320812988,1711566638549,-848.11834546,0.00035,2]
[320812989,1711566638558,-6904.89180487,0.00035,4]
[320812990,1711566638567,-155.00620025,0.00035,4]
[320812991,1711566638576,-19245.92065601,0.00035,30]
[320812992,1711566638585,-6250.0,0.0003516,120]
[320812993,1711566638702,-1114.38,0.00035614,7]
[320812994,1711566638713,-355.4090916,0.00035614,2]
[320812995,1711566638724,-731.16,0.00035614,2]
[320812996,1711566638735,-500.0,0.00035614,2]
[320812997,1711566638744,-500.0,0.00035614,2]
[320812998,1711566638753,-500.0,0.00036712,4]
[320812999,1711566638763,-500.0,0.00036712,4]
[320813000,1711566638772,-1459.26,0.00036712,4]
[320813001,1711566638781,-1085.08,0.00036712,2]
[320813002,1711566638790,-500.0,0.00036712,4]
[320813003,1711566638799,-5169.45,0.00036712,4]
[320813004,1711566638809,-1152.83,0.00036712,4]